Cogmind - Beta 10.2 @@@ ROGUE MODE // 2022.02.17 @ 00:04:08 Player: Dangertech Result: Destroyed by P-60 Hacker with Shock Rifle Performance ------------- Evolutions (3) 1500 Regions Visited (6) 1200 Robots Destroyed (14) 70 Value Destroyed (313) 313 Prototype IDs (24) 480 Alien Tech Used (0) 0 Bonus (333) 333 TOTAL SCORE: 3896 Bonus ------- Follower Combat Kills 33 Aligned with FarCom 300 Cogmind --------- Core Integrity 0/700 Matter 83/300 Energy 99/100 System Corruption 5% Temperature Cool (0) Movement Core (50) Location -7/Factory Parts ------- > --- POWER (2) -------- (None) > --- PROPULSION (3) --- (None) > --- UTILITY (5) ------ Advanced Signal Interpreter Advanced Terrain Scan Processor Improved ECM Suite > --- WEAPON (3) ------- (None) > --- INVENTORY (4) ---- Terrain Scanner Transmission Jammer Light Assault Rifle Mining Laser Peak State ------------ > --- POWER ------------ Ion Engine > --- PROPULSION ------- Wheel Compact Wheel > --- UTILITY ---------- Small Storage Unit Experimental Sensor Array Improved Terrain Scan Processor Trap Reconfigurator > --- WEAPON ----------- Light Assault Rifle Bore Cannon Rocket Launcher > --- INVENTORY -------- Wheel Airjet Terrain Scanner Transmission Jammer Improved ECM Suite Mining Laser [Rating: 31] Favorites ----------- Power Light Ion Engine Engine Light Ion Engine Propulsion Compact Wheel Treads Light Treads Leg Aluminum Leg Wheel Compact Wheel Flight Unit Flight Unit Utility Small Storage Unit Device Terrain Scanner Storage Small Storage Unit Processor Improved Terrain Scan Processor Hackware System Shield Protection Propulsion Shielding Weapon Light Assault Rifle Energy Cannon Heavy Particle Cannon Ballistic Gun Light Assault Rifle Ballistic Cannon Bore Cannon Launcher Rocket Launcher Build | -11 -10 -10 -10 -9 -8 -7 ------- Run | Scr Mat Min Exi Min Mat Fac Slots Evolved 6 | . . . . . 4 2 Power 1 | . . . . . . 1 Propulsion 1 | . . . . . 1 . Utility 3 | . . . . . 2 1 Weapon 1 | . . . . . 1 . Parts Attached 55 | 7 2 12 2 10 17 5 Power 5 | 1 . 2 . 1 1 . Engine 5 | 1 . 2 . 1 1 . Core . | . . . . . . . Reactor . | . . . . . . . Propulsion 12 | 4 . 2 . 5 1 . Treads 2 | 2 . . . . . . Leg 2 | 2 . . . . . . Wheel 4 | . . . . 3 1 . Hover . | . . . . . . . Flight 4 | . . 2 . 2 . . Utility 27 | . 1 5 2 1 14 4 Device 17 | . . 3 2 . 10 2 Storage 2 | . 1 . . 1 . . Processor 5 | . . . . . 3 2 Hackware 1 | . . . . . 1 . Protection 2 | . . 2 . . . . Artifact . | . . . . . . . Weapon 11 | 2 1 3 . 3 1 1 Energy Gun . | . . . . . . . Energy Cannon 1 | . . . . . . 1 Ballistic Gun 5 | 2 . 3 . . . . Ballistic Cannon 1 | . . . . 1 . . Launcher 4 | . 1 . . 2 1 . Special Weapon . | . . . . . . . Impact Weapon . | . . . . . . . Slashing Weapon . | . . . . . . . Piercing Weapon . | . . . . . . . Special Melee Weapon . | . . . . . . . Unidentified Prototypes 1 | . . 1 . . . . Parts Lost 13 | . 3 1 . 1 . 8 Power 2 | . 1 . . . . 1 Propulsion 4 | . 1 . . 1 . 2 Utility 2 | . . . . . . 2 Weapon 5 | . 1 1 . . . 3 Highest Loss Streak 7 | . 3 1 . 1 . 7 Average Slot Usage (%) 87 | . 74 87 100 97 89 79 Engine 11 | . 13 13 14 14 9 6 Leg 4 | . 27 4 . . . . Wheel 10 | . . . . 12 18 13 Flight 6 | . . 19 28 14 . . Device 15 | . . 19 28 22 16 14 Storage 6 | . 4 4 . 5 9 6 Processor 5 | . . . . . 9 15 Energy Cannon 1 | . . . . . . 6 Ballistic Gun 13 | . 14 24 28 19 9 . Ballistic Cannon 5 | . . . . 6 9 6 Launcher 5 | . 13 . . . 8 6 Naked Turns . | . . . . . . . Heaviest Build 31 | 6 12 13 14 20 25 31 Greatest Support 26 | 20 20 10 8 26 26 26 Greatest Overweight (x) 4 | 1 . 3 1 2 . 4 Average Overweight (x) . | . . . . . . . Largest Inventory Capacity 6 | 4 6 6 4 6 6 6 Average Capacity 5 | 4 4 4 4 4 6 5 Most Carried 6 | 2 6 6 4 6 6 6 Average Carried 4 | . 3 3 3 4 5 5 Final Capacity 6 | 4 6 4 4 6 6 4 Final Carried 6 | 2 6 4 4 6 6 4 Class Distribution -------------------- 51% | Scavenger-Skirmisher 20% | Mutant 10% | Scavenger-Mutant 10% | Scavenger-Scout 3% | Skirmisher 3% | Scout Dominant Class ---------------- Mutant | -10/Materials Scavenger-Mutant | -10/Mines Scavenger-Mutant | -10/Exiles Scavenger-Skirmisher | -9/Mines Scavenger-Skirmisher | -8/Materials Scavenger-Skirmisher | -7/Factory Resources | -11 -10 -10 -10 -9 -8 -7 ----------- Run | Scr Mat Min Exi Min Mat Fac Matter Collected 676 | 236 18 64 . 305 53 . Remotely . | . . . . . . . Salvage Created 243 | . 96 34 . 9 104 . Parts 26 | . 9 7 . . 10 . Haulers Intercepted . | . . . . . . . Recyclers Shooed 2 | . 1 1 . . . . Parts Field Recycled . | . . . . . . . Retrieved Matter . | . . . . . . . Parts Self-Destructed . | . . . . . . . Prevented . | . . . . . . . Kills | -11 -10 -10 -10 -9 -8 -7 ------- Run | Scr Mat Min Exi Min Mat Fac Combat Hostiles Destroyed 15 | . 5 3 . 2 5 . Guns 7 | . 2 3 . 1 1 . Cannons 1 | . . . . . 1 . AOE 7 | . 3 . . 1 3 . Classes Destroyed 5 | . 3 . . 1 1 . Builder 1 | . 1 . . . . . Swarmer 7 | . 1 3 . . 3 . Grunt 5 | . 4 . . . 1 . Hunter 1 | . . . . . 1 . Assembled 2 | . . . . 2 . . Best Kill Streak 5 | . 5 3 . 1 4 . Combat Bots Only 4 | . 4 3 . 1 4 . Max Kills in Single Turn 2 | . 2 1 . 1 2 . Gunslinging . | . . . . . . . Exploded 1 | . 1 . . 1 1 . Melee . | . . . . . . . Uniques/NPCs Destroyed . | . . . . . . . Combat | -11 -10 -10 -10 -9 -8 -7 -------- Run | Scr Mat Min Exi Min Mat Fac Damage Taken 2110 | . 469 230 . 82 189 1140 Core 926 | . 98 60 . 22 36 710 Absorbed by Shields . | . . . . . . . Core Remaining (%) 73 | 100 . . . 28 93 . Volleys Fired 35 | . 6 18 . 4 5 2 Largest 3 | . 2 1 . 2 3 3 Hottest 165 | . 50 20 . 53 110 165 Shots Fired 58 | . 11 18 . 8 15 6 Gun 34 | . 6 18 . 5 5 . Cannon 9 | . . . . . 5 4 Launcher 15 | . 5 . . 3 5 2 Special . | . . . . . . . Kinetic 41 | . 6 18 . 5 10 2 Thermal 2 | . . . . . . 2 Explosive 15 | . 5 . . 3 5 2 Electromagnetic . | . . . . . . . Robot Hit Streak 8 | . 6 3 . 3 3 8 Robot Miss Streak 4 | . 1 4 . 3 4 . Penetration Max . | . . . . . . . Secondary Targets . | . . . . . . . Shots Hit Robots 30 | . 8 7 . 3 6 6 Core Hits 25 | . 9 4 . 3 6 3 Critical Hits 3 | . . . . . 1 2 Critical Kills 1 | . . . . . 1 . Critical Parts Destroyed 2 | . . . . . . 2 Melee Attacks . | . . . . . . . Impact . | . . . . . . . Slashing . | . . . . . . . Piercing . | . . . . . . . Sneak Attacks . | . . . . . . . Combat Hostiles . | . . . . . . . Follow-up Attacks . | . . . . . . . Damage Inflicted 1097 | . 578 76 . 67 217 159 Guns 157 | . 51 76 . 15 15 . Cannons 114 | . . . . . 31 83 Explosions 779 | . 527 . . 52 171 29 Melee . | . . . . . . . Ramming 47 | . . . . . . 47 Kinetic 221 | . 51 76 . 15 46 33 Thermal 50 | . . . . . . 50 Explosive 779 | . 527 . . 52 171 29 Electromagnetic . | . . . . . . . Impact . | . . . . . . . Slashing . | . . . . . . . Piercing . | . . . . . . . Highest Corruption 5 | . 1 1 1 1 . 5 Average Corruption 1 | . 1 1 1 1 . 3 Corruption Purged . | . . . . . . . Effects 11 | . 4 1 . 6 . . Message Errors 7 | . 2 . . 5 . . Energy Discharges 1 | . . 1 . . . . Data Loss (minor) 2 | . 1 . . 1 . . Targeting Errors 1 | . 1 . . . . . Overload Shots . | . . . . . . . Overflow Damage 3 | . 3 . . . . . Projectiles . | . . . . . . . Explosions 3 | . 3 . . . . . Melee . | . . . . . . . Knockbacks 1 | . . . . . . 1 Impact 1 | . . . . . . 1 Kinetic . | . . . . . . . Secondary . | . . . . . . . Self-Inflicted Damage 139 | . 36 . . 28 53 22 Shots 4 | . 1 . . 1 2 . Rammed 11 | . . . . . . 11 Targets Rammed 13 | . 2 . . . . 11 Kicked 2 | . 2 . . . . . Crushed . | . . . . . . . Highest Temperature 174 | . 2 . . 32 120 174 Average Temperature 51 | . 2 . . 13 53 88 Received Heat Transfer 452 | . 108 . . 80 9 255 Siege Activations . | . . . . . . . Robots Corrupted . | . . . . . . . Combat Hostiles . | . . . . . . . Parts Fried . | . . . . . . . Impact Corruptions . | . . . . . . . Robots Melted . | . . . . . . . Combat Hostiles . | . . . . . . . Parts Melted . | . . . . . . . Heat Transferred 74 | . . . . . . 74 Parts Sabotaged . | . . . . . . . Parts Stolen . | . . . . . . . Parts Stripped . | . . . . . . . Power Chain Reactions . | . . . . . . . Missiles Intercepted . | . . . . . . . Alert | -11 -10 -10 -10 -9 -8 -7 ------- Run | Scr Mat Min Exi Min Mat Fac Peak Influence 211 | . 120 77 . 15 211 48 Initial 17 | . . 17 . . . 6 Average 18 | . 16 64 . 1 32 8 Maximum Alert Level 1 | . . . . . 1 . Low Security (%) 98 | 100 100 100 . 100 96 100 Level 1 1 | . . . . . 3 . Level 2 . | . . . . . . . Level 3 . | . . . . . . . Level 4 . | . . . . . . . Level 5 . | . . . . . . . High Security . | . . . . . . . Max Security . | . . . . . . . Squads Dispatched 9 | . 5 1 . . 1 2 Investigation 3 | . 3 . . . . . Extermination 1 | . . . . . . 1 Reinforcement 4 | . 2 . . . 1 1 Assault 1 | . . 1 . . . . Garrison . | . . . . . . . Intercept . | . . . . . . . Construction Impeded 1 | . . . . . . 1 Haulers Reinforced . | . . . . . . . Stealth | -11 -10 -10 -10 -9 -8 -7 --------- Run | Scr Mat Min Exi Min Mat Fac Distress Signals 1 | . 1 . . . . . Communications Jammed . | . . . . . . . Distress Signals . | . . . . . . . Times Spotted 52 | . 20 6 . 6 14 6 Peak Tracking Total 8 | . 8 3 . 2 7 4 Tactical Retreats 7 | . 1 . . 3 1 2 Traps | -11 -10 -10 -10 -9 -8 -7 ------- Run | Scr Mat Min Exi Min Mat Fac Traps Triggered 2 | . 2 . . . . . Indirectly . | . . . . . . . Trap Hack Attempts . | . . . . . . . Triggered . | . . . . . . . Disarmed . | . . . . . . . Reprogrammed . | . . . . . . . Reused 2 | . . . . . 2 . Traps Reconfigurated 22 | . . . . . 22 . Traps Extracted . | . . . . . . . Installed . | . . . . . . . Triggered 2 | . . . . . 2 . Machines | -11 -10 -10 -10 -9 -8 -7 ---------- Run | Scr Mat Min Exi Min Mat Fac Machines Disabled . | . . . . . . . Max in Single Turn . | . . . . . . . Machines Sabotaged . | . . . . . . . Garrisons Compromised . | . . . . . . . Overloaded Fab Kills . | . . . . . . . Fab Network Shutdowns . | . . . . . . . Hacking | -11 -10 -10 -10 -9 -8 -7 --------- Run | Scr Mat Min Exi Min Mat Fac Machines Accessed 8 | . 2 . 5 . 1 . Terminals 3 | . 2 . . . 1 . Fabricators . | . . . . . . . Repair Stations . | . . . . . . . Recycling Units . | . . . . . . . Scanalyzers . | . . . . . . . Garrison Access . | . . . . . . . Total Hacks 62 | . 6 . 50 . 6 . Successful 53 | . 1 . 50 . 2 . Failed 9 | . 5 . . . 4 . Catastrophic . | . . . . . . . Database Lockouts . | . . . . . . . Manual 2 | . . . 2 . . . Terminals 12 | . 6 . . . 6 . Fabricators . | . . . . . . . Repair Stations . | . . . . . . . Recycling Units . | . . . . . . . Scanalyzers . | . . . . . . . Garrison Access . | . . . . . . . Terminal Hacks 53 | . 1 . 50 . 2 . Record 49 | . . . 49 . . . Robot Analysis 1 | . 1 . . . . . Branch Access Points 1 | . . . . . 1 . Locate Traps 1 | . . . . . 1 . EX-Prototype ID Bank 1 | . . . 1 . . . Fabricator Hacks . | . . . . . . . Repair Station Hacks . | . . . . . . . Recycling Unit Hacks . | . . . . . . . Scanalyzer . | . . . . . . . Garrison Access Hacks . | . . . . . . . Unauthorized Hacks . | . . . . . . . Terminals . | . . . . . . . Fabricators . | . . . . . . . Repair Stations . | . . . . . . . Recycling Units . | . . . . . . . Scanalyzers . | . . . . . . . Garrison Access . | . . . . . . . Data Cores Recovered . | . . . . . . . Used . | . . . . . . . Hacking Detections 3 | . 2 . . . 1 . Full Trace Events 2 | . 2 . . . . . Feedback Events . | . . . . . . . Feedback Blocked . | . . . . . . . Robot Schematics Acquired . | . . . . . . . Robots Built . | . . . . . . . Matter . | . . . . . . . Time . | . . . . . . . Total Robot Build Rating . | . . . . . . . Part Schematics Acquired . | . . . . . . . Parts Built . | . . . . . . . Matter . | . . . . . . . Time . | . . . . . . . Total Part Build Rating . | . . . . . . . Parts Repaired . | . . . . . . . Time . | . . . . . . . Parts Recycled . | . . . . . . . Recycled Matter . | . . . . . . . Retrieved Matter . | . . . . . . . Retrieved Components . | . . . . . . . Parts Scanalyzed . | . . . . . . . Part Schematics Acquired . | . . . . . . . Parts Damaged . | . . . . . . . Bothacking | -11 -10 -10 -10 -9 -8 -7 ------------ Run | Scr Mat Min Exi Min Mat Fac Used RIF Installer . | . . . . . . . Robots Hacked . | . . . . . . . Non-combat . | . . . . . . . Combat . | . . . . . . . Robot Hacks Applied . | . . . . . . . Relay Couplers Released . | . . . . . . . Robots Rewired . | . . . . . . . Allies Hacked . | . . . . . . . Hacks Repelled . | . . . . . . . Allies | -11 -10 -10 -10 -9 -8 -7 -------- Run | Scr Mat Min Exi Min Mat Fac Total Allies 1 | . . . . 1 . . Largest Group 1 | . . . . 1 1 . Highest-Rated Group 31 | . . . . 31 31 . Highest-Rated Ally 31 | . . . . 31 31 . Total Orders . | . . . . . . . Ally Attacks 2 | . . . . . 2 . Total Damage 43 | . . . . . 43 . Kills 1 | . . . . . 1 . Allies Corrupted . | . . . . . . . Allies Melted . | . . . . . . . Intel | -11 -10 -10 -10 -9 -8 -7 ------- Run | Scr Mat Min Exi Min Mat Fac Robot Analysis Total 1 | . 1 . . . . . Derelict Logs Recovered 1 | . . 1 . . . . Drone Launches . | . . . . . . . Drone Recoveries . | . . . . . . . Exploration | -11 -10 -10 -10 -9 -8 -7 ------------- Run | Scr Mat Min Exi Min Mat Fac Turns Passed 5775 | 55 932 367 348 1441 1576 1056 Spaces Moved 3898 | 41 458 644 781 646 669 659 Core 96 | 12 . 1 . 2 . 81 Treads 1 | 1 . . . . . . Legs 524 | 28 458 38 . . . . Wheels 1614 | . . . . 367 669 578 Hover . | . . . . . . . Flight 1663 | . . 605 781 277 . . Fastest Speed 37 | 50 120 37 37 37 90 50 Average Speed 73 | 104 120 43 37 69 90 98 Slowest Speed 250 | 160 120 200 117 150 90 250 Overloaded Moves . | . . . . . . . Propulsion Burnouts . | . . . . . . . Robots Hopped . | . . . . . . . Cave-ins Triggered . | . . . . . . . Exploration Rate (%) 42 | 3 40 88 93 29 35 7 Regions Visited 6 Branch Regions 3 Pre-discovered Areas 2 | . . 1 1 . . . Known Exits Taken 1 | . . . . . 1 . Unknown Exits Taken 5 | 1 1 1 1 1 . . Scrap Searched 2 | . . 1 . 1 . . Spaces Dug . | . . . . . . . Terrain Destroyed 108 | . 24 . . 35 47 2 Melee . | . . . . . . . Projectile 5 | . . . . . 5 . AOE 103 | . 24 . . 35 42 2 Terrain Rammed . | . . . . . . . Walls Destroyed . | . . . . . . . Machines Disabled . | . . . . . . . Actions | -11 -10 -10 -10 -9 -8 -7 --------- Run | Scr Mat Min Exi Min Mat Fac Total 6758 | 51 828 716 836 1636 1631 1060 Wait 2700 | . 356 29 51 957 927 380 Move 3892 | 40 457 643 780 645 668 659 Hop . | . . . . . . . Pick Up 31 | 2 5 7 1 9 6 1 Fast Attach 19 | 7 . 3 1 3 3 2 Attach 17 | . 1 6 . 2 7 1 Detach 4 | . . . . 2 2 . Swap 19 | . 1 3 1 5 7 2 Drop 28 | 2 . 7 2 9 6 2 Fire 35 | . 6 18 . 4 5 2 Melee . | . . . . . . . Ram 11 | . . . . . . 11 Kick 2 | . 2 . . . . . Crush . | . . . . . . . Escape Stasis . | . . . . . . . Rewire . | . . . . . . . Trap . | . . . . . . . Miscellaneous . | . . . . . . . Route ------- -11/Scrapyard -10/Materials -10/Mines (discovered 3 exits: [*Mat x2] / *Exi) -10/Exiles (discovered 2 exits: [*Min x2]) -9/Mines -8/Materials (discovered 2 exits: *Fac / Sto) -7/Factory History --------- Turn | Location | Event 22 | -11/Scrapyard | Discovered new exit (range 15) 56 | -11/Scrapyard | Entered Materials 311 | -10/Materials | Build established: Mutant 838 | -10/Materials | Discovered new exit (range 7) 988 | -10/Materials | Entered Mines 988 | -10/Mines | Discovered new exit (range 6) 1009 | -10/Mines | Lost 3 parts (1p1n1w) 1047 | -10/Mines | Core integrity fell below 50% 1102 | -10/Mines | Deemed a non-threat by the Exiles lab entrance 1102 | -10/Mines | Discovered new exit (range 5) 1119 | -10/Mines | Received a Rocket Launcher from a helpful Derelict 1214 | -10/Mines | Found a damaged Exp. Sensor Array with a note attached 1215 | -10/Mines | Found Prototype Device 1231 | -10/Mines | Discovered new exit (range 5) 1234 | -10/Mines | Met a Derelict testing a Signal Generator 1280 | -10/Mines | Learned Materials trap positions 1319 | -10/Mines | Learned location of Storage (-8) 1319 | -10/Mines | Identified Exp. Sensor Array 1355 | -10/Mines | Entered Exiles 1361 | -10/Exiles | Discovered new exit (range 14) 1373 | -10/Exiles | Met 8R-AWN 1378 | -10/Exiles | Build established: Scavenger-Mutant 1382 | -10/Exiles | Met EX-HEX 1406 | -10/Exiles | Met EX-DEC 1419 | -10/Exiles | Visited The Gauntlet 1473 | -10/Exiles | Learned location of Zion (-7) 1502 | -10/Exiles | Discovered new exit (range 10) 1531 | -10/Exiles | Met EX-BIN 1606 | -10/Exiles | Aligned with FarCom system 1607 | -10/Exiles | Given EX-Vault access code 1617 | -10/Exiles | Opened EX-Vault 1625 | -10/Exiles | Found Cloak of Protection 1637 | -10/Exiles | Found Trap Reconfigurator 1668 | -10/Exiles | Warned to stay clear of 0b10 Research branches 1703 | -10/Exiles | Left Exiles lab with Trap Reconfigurator 1703 | -10/Exiles | Entered Mines 1714 | -9/Mines | Assembled infested the area 1719 | -9/Mines | Assisted by a Guerilla fighting off Assembled 1755 | -9/Mines | Met a Derelict bent on vengeance 2000 | -9/Mines | Build established: Scavenger-Scout 2851 | -9/Mines | Build established: Scavenger-Skirmisher 3041 | -9/Mines | Discovered new exit (range 10) 3130 | -9/Mines | Received a Mining Laser from a helpful Derelict 3144 | -9/Mines | Entered Materials 3144 | -8/Materials | Accompanied by 1 ally 3144 | -8/Materials | Evolved 4 slots: Propulsion x1, Utility x2, Weapon x1 3145 | -8/Materials | Loaded intel: 34 trap records 3198 | -8/Materials | Identified exit to Storage 4592 | -8/Materials | Discovered new exit (range 16) 4607 | -8/Materials | Identified exit to Factory 4720 | -8/Materials | Entered Factory 4720 | -7/Factory | Evolved 2 slots: Power x1, Utility x1 5721 | -7/Factory | Core integrity fell below 50% 5731 | -7/Factory | Lost 7 parts (1p2n1u3w) 5762 | -7/Factory | Core integrity fell below 20% 5776 | -7/Factory | Destroyed by P-60 Hacker with Shock Rifle Last Messages --------------- 05673_ P-60 Hacker knocked back. 05673_ Rocket Launcher destroyed. 05676_ Door malfunctions. 05683_ Slammed into U-05 Engineer. 05683_ Destabilizing: System corrupted (+2). 05683_ ALERT: Construction progress impeded, dispatching reinforcements to local area. 05687_ Com. Wheel destroyed. 05690_ Lgt. Deuterium Engine destroyed. 05693_ Critical hit. 05693_ Wheel destroyed. 05700_ Hvy. Particle Cannon destroyed. 05700_ Adv. Sensor Array destroyed. 05702_ Slammed into Y-54 Guardian. 05710_ Slammed into U-05 Engineer. 05711_ Slammed into R-06 Scavenger. 05756_ T-07 Excavator destroyed. 05757_ K-01 Serf collects debris. 05767_ Sml. Storage Unit destroyed. 05767_ K-01 Serf collects debris. Map ----- +----------------------------------------------------+ | ???????????????????????????????????? | | ???????????????????????????????????? | | ???????????????????????????????????? | | ???????????????????????????????????? | | ???????????????????????????????????? | | ???????????????????????????????????? | | ???????????????????????????????????? | | ???????????????????????????????????? | | ????????????????######? ?????????? | | ???????????????? ## #????????? | | ???????????????"" ## #????????? | | ??????????????#"" ## #????????? | | ??????????????#G ## #????????? | | ??????????????#"" ## #????????? | | ??????????????#"" ## #????????? | | ??????????????# ## #????????? | | ??????????????# ## #????????? | | ??????????????# ## #????????? | | ??????????????# """## #????????? | | ??????????????# """## +????????? | | ??????????????# """## #????????? | | ??????????????# ## #####??### | | ??????#+#+#########+## #### | | ??????# # | | ??????# = p + | | ??????# @ ! # " | | ??????###+###+#####+## Y # " | | ??????????? ?????# g #/# | | ????????? """"""""???# g |%=# | | ???????#* ?# ! | | ???????# # ##### | | ???????# ""T"" ] # #???# | | ???????# """"" ! # #???# | | ???????###############+????# #### | | ????????????????????? ?????# #??? | | ?????????????????????"?????# #??? | | ?????????????????????" ????# #??? | | ?????????????????????" ????# ##+#### | | ???????????????????? ????# # | | ??????????????????#""" ????# # ][] | | ??????????????????#""" ????# # ][ | | ??????????????????#""" ????# # [] | | ???????????????????? ????# # | | ?????????????????????#/##### # | | ????????#######??????# # | | ????????# #??????# # | | ????????# ######## # [ | | ????????# / | | ????????# =########+####### | | ????????# #????? ????# | +----------------------------------------------------+ Best States ------------- Heat Dissipation 34 Energy Generation 14 Energy Capacity 250 Matter Stores 300 Matter Capacity 300 Sight Range 16 Robot Scan Range 30 Terrain Scan Range 14 Terrain Scan Density 210 ECM Strength 2 Cloak Strength 5 Propulsion Shielding 33 Evasion (%) 62 Recoil Reduction 1 Defensive Hacking 10 Item Schematics ----------------- None Robot Schematics ------------------ None Fabricated ------------ Nothing Alien Tech Used ----------------- None Achievements -------------- I Spy Challenges ------------ None Game ------ Seed TrapImprovedTerminator Manual? 0 Play Time 01:40:22 Cumulative 16.7 hours Start 2022.02.14 @ 21:45:57 End 2022.02.17 @ 00:04:08 Sessions 3 Manual Loads 0 Difficulty Rogue Special Mode None Game No. 17 Rogue 9 Adventurer 5 Explorer 3 Win Type - Total 0 Types 0/0/0/0/0/0/0/0/0 Lore% 17 Gallery% 14 Achievement% 14 Wizard Run 0 Options --------- ASCII 1 Keyboard 0 Movement Numpad Keybinds 0 Fullscreen 0 Font 16/SmallcapsGlow Map View 76x50 Tactical HUD 1 Map Filters NONE Filters NONE Steam 1 RUN: cba4ce4f-727c-4fc3-bd6e-f790c24021ab